bitfinex-derivatives/quotes_SOLF0:USTF0_20240906
["timestamp","ask_amount","ask_price","bid_price","bid_amount"]
[1725627631537,3.7362,133.85,133.8,3.7373]
[1725627631737,3.7362,133.85,133.82,0.05373503]
[1725627631937,46.73431816,133.89,133.82,0.05373503]
[1725627632235,43.13288669,133.84,133.71,2.7289]
[1725627632535,43.08,133.81,133.66,45.8375]
[1725627632736,43.08,133.81,133.74,3.739]
[1725627633339,3.7379,133.79,133.74,3.739]
[1725627634529,3.79081634,133.78,133.73,3.7392]
[1725627634730,0.05271634,133.78,133.67,2.7289]
[1725627634937,43.13271634,133.78,133.67,2.7289]
[1725627635139,3.739,133.75,133.7,3.7401]
[1725627635347,43.08,133.78,133.66,2.7575]
[1725627635531,3.70942101,133.77,133.66,2.7575]
[1725627635734,2.6529,133.8,133.71,0.04871881]
[1725627635735,0.05081296,133.74,133.71,0.04871881]
[1725627636340,3.70081881,133.77,133.65,2.7514]
[1725627636537,43.08,133.73,133.65,2.7514]
[1725627637137,3.7399,133.72,133.66,3.7413]
[1725627637337,0.04751413,133.7,133.68,0.05640219]
[1725627640044,3.7405,133.69,133.68,0.05640219]
[1725627640548,0.04751413,133.7,133.68,0.05640219]
[1725627642854,3.78791413,133.7,133.68,0.05640219]
[1725627643049,0.04751413,133.7,133.68,0.05640219]
[1725627643255,3.7405,133.69,133.68,0.05640219]
[1725627644358,3.78791413,133.7,133.68,0.05640219]
[1725627644652,0.04751413,133.7,133.68,0.05640219]
[1725627645856,3.7405,133.69,133.68,0.05640219]
[1725627646157,3.7405,133.69,133.63,6.4806]
[1725627646757,0.04751413,133.7,133.58,46.80660956]
[1725627646951,3.7337207,133.69,133.58,43.08]
[1725627647353,3.7413,133.67,133.58,43.08]
[1725627647749,0.04945409,133.65,133.62,3.7424]
[1725627647952,0.04945409,133.65,133.58,46.83804827]
[1725627648152,0.04945409,133.65,133.6,43.08]
[1725627648460,0.04945409,133.65,133.64,3.7419]
[1725627648655,43.08,133.74,133.62,43.08]
[1725627648858,5.1567,133.73,133.62,43.08]
[1725627649057,3.7398,133.72,133.66,3.7412]
[1725627649262,5.1567,133.73,133.66,3.7412]
[1725627649558,3.7404,133.7,133.64,3.7417]
[1725627649962,3.7404,133.7,133.65,3.7416]
[1725627650261,3.79761542,133.71,133.6,43.08]
[1725627650453,3.74,133.71,133.6,43.08]
[1725627650661,3.74,133.71,133.65,3.7415]
[1725627650860,0.05024769,133.67,133.6,43.08]
[1725627651365,0.05024769,133.67,133.62,43.08]
[1725627651951,0.05024769,133.67,133.66,3.7413]
[1725627652256,0.05024769,133.67,133.62,43.08]
[1725627653557,3.7398,133.72,133.62,43.08]
[1725627653857,5.1567,133.73,133.63,0.05487894]
[1725627654160,2.6744,133.76,133.65,43.08]
[1725627654462,5.5942,133.77,133.66,5.4406]
[1725627654864,3.7389,133.75,133.7,3.7957982]
[1725627655060,9.25841432,133.77,133.7,0.0556982]
[1725627655865,3.7395,133.73,133.7,0.0556982]
[1725627656469,3.7392,133.74,133.7,0.0556982]
[1725627656661,9.25841432,133.77,133.7,0.0556982]
[1725627656860,3.739,133.75,133.7,0.0556982]
[1725627657061,0.0574761,133.73,133.7,0.0556982]
[1725627657467,3.7969761,133.73,133.7,0.0556982]
[1725627658169,0.0574761,133.73,133.7,0.0556982]
[1725627659473,0.0574761,133.73,133.7,3.7956982]
[1725627659661,0.0574761,133.73,133.7,0.0556982]
[1725627660369,3.7399,133.71,133.7,0.0556982]
[1725627660767,0.0574761,133.73,133.7,0.0556982]
[1725627661062,43.08,133.71,133.61,5.2072]
[1725627661264,3.7409,133.68,133.61,5.2072]
[1725627661467,6.39104258,133.7,133.61,5.2072]
[1725627661961,6.39104258,133.7,133.59,2.663]
[1725627662157,2.6041,133.7,133.6,43.08]
[1725627662470,0.05478567,133.67,133.6,43.08]
[1725627662666,0.05478567,133.67,133.6,46.84187835]
[1725627663370,3.7415,133.66,133.61,3.7426]
[1725627664067,43.13478567,133.67,133.59,2.663]
[1725627664366,2.6029,133.65,133.59,2.663]
[1725627664670,2.6029,133.65,133.61,3.7425]
[1725627665067,0.05742747,133.63,133.6,3.7429]
[1725627665373,0.05742747,133.63,133.59,2.663]
[1725627665574,0.05742747,133.63,133.58,3.7434]
[1725627665873,0.05742747,133.63,133.54,2.6197]
[1725627666172,0.05742747,133.63,133.59,3.7432]
[1725627666382,0.05742747,133.63,133.56,35.97]
[1725627666571,2.6032,133.69,133.58,35.97]
[1725627666866,2.6032,133.69,133.55,3.68345582]
[1725627666867,5.1977,133.69,133.61,35.97]
[1725627667070,0.05377678,133.62,133.61,35.97]
[1725627667476,8.9383,133.69,133.61,35.97]
[1725627667663,5.1977,133.69,133.61,35.97]
[1725627667868,38.6923,133.72,133.61,35.97]
[1725627668175,0.04803286,133.66,133.58,35.97]
[1725627668671,3.7418,133.65,133.6,3.7429]
[1725627668871,35.97,133.65,133.54,35.97]
[1725627669372,3.7424,133.63,133.58,3.7434]
[1725627669580,38.7167,133.65,133.54,35.97]
[1725627669773,3.7432,133.6,133.55,3.7444]
[1725627670381,0.0540323,133.61,133.53,2.6697]
[1725627670382,3.7435,133.59,133.53,2.6697]
[1725627670869,3.7436,133.58,133.53,2.6697]
[1725627671065,3.7436,133.58,133.52,2.6481]
[1725627671375,3.79527977,133.57,133.49,38.5585]
[1725627671574,0.05137977,133.57,133.49,38.5585]
[1725627671975,0.05137977,133.57,133.52,43.16]
[1725627672368,0.05137977,133.57,133.55,3.7443]
[1725627673383,0.05137977,133.57,133.56,3.7441]
[1725627673572,0.05137977,133.57,133.52,43.16]
[1725627673880,45.9067,133.65,133.52,43.16]
[1725627674475,45.9067,133.65,133.57,3.7437]
[1725627674676,48.4438,133.68,133.55,3.78717232]
[1725627674873,48.4438,133.68,133.56,5.4404]
[1725627675068,43.16,133.65,133.56,3.7439]
[1725627675269,43.16,133.65,133.49,48.6004]
[1725627675468,5.2838,133.68,133.49,48.6004]
[1725627675469,43.16,133.63,133.49,48.6004]
[1725627675771,43.16,133.63,133.56,0.0491599]
[1725627675974,3.72462705,133.62,133.56,0.0491599]
[1725627676171,3.7432,133.6,133.56,0.0491599]
[1725627676373,43.16,133.6,133.56,0.0491599]
[1725627676568,5.3187,133.59,133.49,5.4404]
[1725627676778,5.3187,133.59,133.49,52.43663477]
[1725627676974,5.3187,133.59,133.49,45.8981]
[1725627677180,5.3187,133.59,133.49,2.7381]
[1725627677981,0.05522917,133.55,133.52,3.7451]
[1725627678579,0.05522917,133.55,133.51,3.7455]
[1725627678787,0.05522917,133.55,133.49,2.7381]
[1725627679074,3.79972917,133.55,133.48,2.6354]
[1725627679276,43.21522917,133.55,133.45,2.6508]
[1725627679481,3.7449,133.54,133.45,2.6508]
[1725627679674,0.05522917,133.55,133.45,2.6508]
[1725627679870,43.16,133.56,133.48,3.7462]
[1725627680281,0.04873072,133.51,133.5,3.7458]
[1725627680769,5.3187,133.59,133.5,3.7458]
[1725627680968,5.3187,133.59,133.46,43.16]
[1725627681173,0.05475738,133.52,133.47,2.5816]
[1725627681375,0.05475738,133.52,133.47,5.3422]
[1725627681582,0.05475738,133.52,133.51,0.05263233]
[1725627681976,0.05475738,133.52,133.47,5.3422]
[1725627682185,0.05475738,133.52,133.5,0.05332176]
[1725627682372,0.05475738,133.52,133.51,3.7455]
[1725627682783,0.05475738,133.52,133.5,0.05332176]
[1725627688384,3.7455,133.51,133.5,0.05332176]
[1725627688785,0.05475738,133.52,133.5,0.05332176]
[1725627688981,0.05475738,133.52,133.51,3.7455]
[1725627689781,2.5791,133.58,133.5,43.21332176]
[1725627689988,2.5791,133.58,133.5,2.6774]
[1725627689989,3.7443,133.56,133.5,2.6774]
[1725627690186,2.5791,133.58,133.5,3.7456]
[1725627690488,2.5791,133.58,133.46,2.5694]
[1725627690683,2.5791,133.58,133.51,3.7454]
[1725627691183,2.5791,133.58,133.53,0.05121489]
[1725627691686,3.7442,133.56,133.53,0.05121489]
[1725627691881,45.805,133.59,133.53,0.05121489]
[1725627692089,3.7437,133.58,133.53,0.05121489]
[1725627692287,45.805,133.59,133.53,0.05121489]
[1725627692888,2.574,133.6,133.53,0.05121489]
[1725627693093,2.574,133.6,133.57,3.7438]
[1725627693298,2.574,133.6,133.53,0.05121489]
[1725627693592,2.574,133.6,133.52,2.7376]
[1725627693793,6.3171,133.6,133.55,3.7443]
[1725627694091,6.3171,133.6,133.55,3.79867214]
[1725627694293,3.7435,133.59,133.55,0.05437214]
[1725627694490,35.94,133.59,133.55,0.05437214]
[1725627694884,3.7438,133.58,133.55,0.05437214]
[1725627695883,35.94,133.59,133.48,5.2891]
[1725627696095,35.94,133.55,133.43,35.94]
[1725627696283,3.7451,133.53,133.48,3.7462]
[1725627697392,0.04910392,133.52,133.44,2.7654]
[1725627697690,0.04910392,133.52,133.45,35.94]
[1725627697893,0.04910392,133.52,133.45,45.8408]
[1725627698996,0.04910392,133.52,133.45,49.67604913]
[1725627699898,0.04910392,133.52,133.45,6.52604913]
[1725627700492,0.04910392,133.52,133.48,3.7463]
[1725627700690,0.04910392,133.52,133.45,6.52604913]
[1725627700891,0.04910392,133.52,133.48,3.7464]
[1725627702094,0.04910392,133.52,133.44,2.7654]
[1725627702394,0.04910392,133.52,133.43,45.8253]
[1725627702395,0.04910392,133.52,133.4,43.15]
[1725627702587,3.7468,133.47,133.42,3.7478]
[1725627702792,3.82999482,133.48,133.39,5.3939]
[1725627702992,48.3446,133.51,133.39,5.3939]
[1725627703195,0.05098123,133.46,133.39,5.3939]
[1725627703792,0.05098123,133.46,133.42,3.7479]
[1725627703995,0.05098123,133.46,133.39,5.3939]
[1725627704203,0.05098123,133.46,133.42,3.748]
[1725627704899,0.05098123,133.46,133.39,5.3939]
[1725627705297,0.05098123,133.46,133.39,2.7308]
[1725627706296,0.05098123,133.46,133.35,45.8775]
[1725627706498,3.7488,133.4,133.35,3.7499]
[1725627706696,3.7488,133.4,133.32,5.4853]
[1725627706895,3.7818624,133.41,133.32,5.4853]
[1725627707096,2.6874,133.43,133.32,2.6725]
[1725627707401,0.05261672,133.39,133.32,2.6725]
[1725627707594,3.80149231,133.39,133.32,2.6725]
[1725627707794,7.55049231,133.39,133.33,3.7504]
[1725627708204,7.55049231,133.39,133.34,3.7503]
[1725627708692,3.80149231,133.39,133.33,3.7504]
[1725627708895,3.80149231,133.39,133.28,43.15]
[1725627709207,3.7499,133.36,133.28,45.7878]
[1725627709397,3.7499,133.36,133.29,3.84451882]
[1725627709596,0.04724121,133.33,133.28,45.7878]
[1725627709799,0.04724121,133.33,133.29,3.66785849]
[1725627710004,0.04724121,133.33,133.28,2.6378]
[1725627710209,2.5656,133.4,133.31,43.15]
[1725627710502,3.7491,133.39,133.31,43.15]
[1725627711001,3.83064105,133.41,133.31,43.15]
[1725627711303,3.83064105,133.41,133.32,2.5821]
[1725627711497,3.7488,133.4,133.34,0.05195761]
[1725627711801,3.83064105,133.41,133.34,0.05195761]
[1725627712001,2.76,133.42,133.34,0.05195761]
[1725627712002,3.7488,133.4,133.34,3.80215761]
[1725627712198,2.76,133.42,133.34,3.80215761]
[1725627712199,3.68126224,133.39,133.34,3.80215761]
[1725627712397,2.76,133.42,133.34,3.80215761]
[1725627712591,2.76,133.42,133.34,0.05195761]
[1725627713705,3.7492,133.39,133.34,0.05195761]
[1725627713901,3.78028947,133.39,133.34,0.05195761]
[1725627714197,3.75,133.35,133.34,0.05195761]
[1725627714404,3.75,133.35,133.28,2.6378]
[1725627714405,3.75703308,133.35,133.28,2.6378]
[1725627714702,3.7506,133.33,133.29,3.7517]
[1725627714899,46.92616334,133.39,133.28,2.6378]
[1725627715308,46.92616334,133.39,133.3,3.7513]
[1725627715598,0.0473774,133.35,133.28,2.6378]
[1725627715794,3.7504,133.34,133.28,2.6378]
[1725627715995,0.0473774,133.35,133.21,2.7721]
[1725627716202,5.3689,133.36,133.22,48.4377]
[1725627716397,3.7511,133.32,133.27,3.7523]
[1725627716604,5.3689,133.36,133.23,2.6425]
[1725627716605,0.04933342,133.29,133.23,2.6425]
[1725627716795,0.04933342,133.29,133.24,3.65900311]
[1725627717101,0.04933342,133.29,133.26,3.7524]
[1725627717301,0.04933342,133.29,133.23,2.6425]
[1725627717497,0.04933342,133.29,133.25,3.7527]
[1725627717702,0.04933342,133.29,133.23,2.6425]
[1725627717902,0.04933342,133.29,133.22,45.7952]
[1725627717903,0.04933342,133.29,133.22,2.6452]
[1725627718098,3.80113342,133.29,133.22,2.6452]
[1725627718596,0.04933342,133.29,133.24,3.7529]
[1725627718797,0.04933342,133.29,133.23,36.06]
[1725627718993,0.04933342,133.29,133.25,3.7528]
[1725627719199,0.04933342,133.29,133.23,36.06]
[1725627719397,0.04933342,133.29,133.22,2.6452]
[1725627720803,0.04933342,133.29,133.24,3.7529]
[1725627721005,0.04933342,133.29,133.22,2.6452]
[1725627721309,3.7522,133.28,133.23,3.7533]
[1725627721507,3.7522,133.28,133.22,2.6452]
[1725627721812,3.7526,133.26,133.22,2.6452]
[1725627722006,36.06,133.28,133.24,0.04987075]
[1725627722302,0.05061364,133.25,133.16,36.06]
[1725627722906,3.7537,133.23,133.17,3.7549]
[1725627723107,36.06,133.26,133.14,36.06]
[1725627723406,36.06,133.26,133.16,3.7552]
[1725627723407,3.754,133.21,133.16,3.7552]
[1725627723805,3.81055954,133.21,133.16,3.7552]
[1725627724205,3.7543,133.2,133.15,3.7556]
[1725627724406,0.05655954,133.21,133.14,36.06]
[1725627724599,0.05655954,133.21,133.16,36.06]
[1725627724804,0.05655954,133.21,133.17,2.7395]
[1725627725105,43.9832,133.27,133.12,3.65972639]
[1725627725307,0.04990189,133.2,133.11,42.51616397]
[1725627725504,3.703142,133.19,133.11,38.7995]
[1725627725699,3.7551,133.18,133.11,38.7995]
[1725627725899,3.703142,133.19,133.11,38.7995]
[1725627726098,36.06,133.21,133.11,38.7995]
[1725627726301,0.04915795,133.16,133.11,38.7995]
[1725627726498,0.04915795,133.16,133.12,3.7564]
[1725627726714,0.04915795,133.16,133.11,38.7995]
[1725627727107,3.7558,133.15,132.92,232.85841529]
[1725627727313,7.52955674,133.15,133.06,36.06]
[1725627727511,3.7558,133.15,133.09,3.7573]
[1725627727706,2.7723,133.18,133.07,1.38055337]
[1725627727707,2.7723,133.18,133.07,3.78222232]
[1725627727903,2.8144,133.2,133.1,36.06]
[1725627728105,2.8144,133.2,133.11,2.5986]
[1725627728611,0.05011579,133.16,133.12,3.7564]
[1725627728805,0.05011579,133.16,133.12,3.78410122]
[1725627729014,2.673,133.26,133.12,3.78410122]
[1725627729015,5.3402,133.25,133.21,3.7538]
[1725627729223,5.3402,133.25,133.13,6.39711973]
[1725627729418,5.3402,133.25,133.13,38.6159]
[1725627729419,41.4002,133.25,133.13,38.6159]
[1725627729710,36.06,133.21,133.13,2.5559]
[1725627730016,3.7548,133.19,133.13,2.5559]
[1725627730405,0.05768113,133.18,133.13,2.5559]
[1725627730615,0.05768113,133.18,133.08,36.06]
[1725627730813,0.05768113,133.18,133.12,3.7563]
[1725627731113,39.77458198,133.21,133.12,3.7563]
[1725627731803,39.77458198,133.21,132.94,7.86158782]
[1725627731804,36.11005159,133.16,132.92,19.14748782]
[1725627732012,36.06,133.13,133.01,36.06]
[1725627732317,8.0354,133.15,133.08,3.7574]
[1725627732516,8.0354,133.15,133.03,36.06]
[1725627732711,0.05382237,133.08,133.06,3.758]
[1725627733013,0.05382237,133.08,133.03,36.06]
[1725627733214,3.7571,133.1,133.03,3.7588]
[1725627733416,36.06,133.11,132.98,36.06]
[1725627733621,0.05110358,133.07,132.99,3.95317746]
[1725627733819,0.05110358,133.07,133.01,3.7596]
[1725627734121,2.7284,133.1,132.99,6.38707479]
[1725627734426,0.04812035,133.05,133.03,36.06]
[1725627734615,3.74708544,133.13,133.04,2.6434]
[1725627734915,5.307,133.14,133.06,3.758]
[1725627735215,8.9796475,133.14,133.04,2.6434]
[1725627735410,36.06,133.13,133.0,38.6554]
[1725627736219,36.06,133.13,133.05,0.05197333]
[1725627736415,3.7568,133.11,133.05,3.81027333]
[1725627736617,8.9796475,133.14,133.04,36.06]
[1725627736818,36.06,133.11,133.0,2.5954]
[1725627737017,36.06,133.11,133.03,3.7589]
[1725627737218,36.06,133.11,133.0,2.5954]
[1725627737621,45.0396475,133.14,133.0,38.6554]
[1725627737924,8.9796475,133.14,133.01,1.38133083]
[1725627738121,8.9796475,133.14,133.05,3.7583]
[1725627738724,8.9796475,133.14,133.06,3.7582]
[1725627739220,8.9796475,133.14,133.05,3.7584]
[1725627739425,8.9796475,133.14,133.03,36.06]
[1725627739722,3.7564,133.13,133.07,3.7578]
[1725627740036,3.7564,133.13,133.08,0.04869317]
[1725627740323,2.6641,133.14,133.08,0.04869317]
[1725627740724,36.06,133.16,133.08,0.04869317]
[1725627741026,3.66590582,133.15,133.08,0.04869317]
[1725627741321,36.06,133.16,133.07,5.3639]
[1725627741517,36.06,133.16,133.07,2.7055]
[1725627741921,3.7567,133.12,133.07,2.7055]
[1725627742120,3.81774363,133.13,133.07,2.7055]
[1725627742323,36.06,133.16,133.07,2.7055]
[1725627742525,3.7568,133.12,133.07,2.7055]
[1725627742927,3.7568,133.12,133.1,0.05628926]
[1725627743118,3.7568,133.11,133.1,0.05628926]
[1725627743519,39.79731469,133.12,133.04,2.7055]
[1725627743728,3.7569,133.11,133.04,2.7055]
[1725627744025,39.79731469,133.12,133.04,2.7055]
[1725627744226,43.55401469,133.12,133.04,2.7055]
[1725627744428,39.79731469,133.12,133.04,2.7055]
[1725627744627,39.79731469,133.12,133.06,3.758]
[1725627744832,36.06,133.14,133.06,3.82471427]
[1725627745129,3.73486694,133.15,133.04,2.7055]
[1725627745428,39.8156,133.16,133.08,0.05726147]
[1725627745623,39.8156,133.16,133.08,3.86317923]
[1725627745624,3.7556,133.16,133.08,3.86317923]
[1725627745826,3.7555,133.16,133.1,3.7569]
[1725627746027,3.7555,133.16,133.08,3.80591776]
[1725627746229,5.2231,133.18,133.1,3.7569]
[1725627746419,36.06,133.16,133.06,3.68374043]
[1725627746932,7.53136741,133.15,133.11,0.05567095]
[1725627747222,36.06,133.16,133.11,3.81247095]
[1725627747429,7.43146882,133.15,133.11,0.05567095]
[1725627747626,36.06,133.16,133.11,0.05567095]
[1725627747826,3.81614819,133.15,133.11,0.05567095]
[1725627748032,7.57194819,133.15,133.11,0.05567095]
[1725627748227,3.81614819,133.15,133.11,0.05567095]
[1725627748523,36.06,133.14,133.11,0.05567095]
[1725627748728,3.81614819,133.15,133.11,0.05567095]
[1725627748729,0.05618998,133.15,133.11,0.05567095]
[1725627749131,3.81198998,133.15,133.11,0.05567095]
[1725627749323,7.49377233,133.15,133.11,0.05567095]
[1725627749528,3.81198998,133.15,133.11,0.05567095]
[1725627749719,0.05618998,133.15,133.11,3.81247095]
[1725627749924,3.81689988,133.15,133.11,3.81247095]
[1725627750427,3.81689988,133.15,133.11,0.05567095]
[1725627750820,0.05618998,133.15,133.11,0.05567095]
[1725627751228,3.73995803,133.15,133.11,0.05567095]
[1725627751429,0.05618998,133.15,133.11,0.05567095]
[1725627751926,3.74915371,133.14,133.11,0.05567095]
[1725627752125,3.81198998,133.15,133.11,0.05567095]
[1725627752728,7.58256313,133.15,133.11,0.05567095]
[1725627753331,3.82676313,133.15,133.11,0.05567095]
[1725627753523,0.05618998,133.15,133.12,3.7564]
[1725627753727,3.81188998,133.15,133.11,0.05567095]
[1725627753927,36.06,133.14,133.11,0.05567095]
[1725627754231,36.06,133.12,133.04,2.7055]
[1725627754429,36.06,133.09,133.0,2.6348]
[1725627754629,36.06,133.09,133.0,5.3416]
[1725627754827,3.7581,133.07,133.02,3.7593]
[1725627755032,7.5906768,133.07,133.02,3.7593]
[1725627755238,7.5906768,133.07,133.0,5.3416]
[1725627755432,7.5906768,133.07,133.02,3.7592]
[1725627755736,0.04946315,133.06,133.02,3.7592]
[1725627756327,0.04946315,133.06,133.0,5.3416]
[1725627756328,0.04946315,133.06,133.01,3.7595]
[1725627756533,3.80776315,133.06,133.01,3.7595]
[1725627757435,0.04946315,133.06,133.02,3.7593]
[1725627757734,0.04946315,133.06,133.0,2.7068]
[1725627758035,0.04946315,133.06,133.02,3.7592]
[1725627758237,0.04946315,133.06,132.96,2.5758]
[1725627758626,3.7591,133.03,132.96,2.5758]
[1725627758832,36.06,133.04,132.95,3.79878573]
[1725627759036,36.06,133.04,132.92,8.2357]
[1725627759037,3.7594,133.02,132.92,8.2357]
[1725627759240,36.06,133.04,132.92,8.2357]
[1725627759241,0.04790855,133.01,132.92,8.2357]
[1725627759630,7.49534076,133.0,132.94,3.7615]
[1725627759828,3.7601,133.0,132.94,3.7615]
[1725627760032,0.05365655,132.98,132.94,3.7615]
[1725627760336,0.05365655,132.98,132.93,36.06]
[1725627760635,36.06,133.04,132.93,36.06]
[1725627760636,39.8188,133.04,132.93,36.06]
[1725627761240,36.06,133.04,132.97,3.7606]
[1725627761539,36.06,133.04,132.92,11.97290786]
[1725627761540,38.6423,133.04,132.92,11.97290786]
[1725627761743,3.7596,133.01,132.92,11.97290786]
[1725627761932,36.06,133.02,132.92,11.97290786]
[1725627762642,36.06,133.02,132.78,22.58647046]
[1725627762643,36.06,133.0,132.86,36.06]
[1725627762939,3.7608,132.97,132.96,0.05010929]
[1725627763139,3.76853141,132.97,132.86,39.86417213]
[1725627763437,0.05685205,132.94,132.86,3.80417213]
[1725627763637,0.05685205,132.94,132.9,3.7625]
[1725627763942,3.75724162,132.96,132.84,38.7068]
[1725627764143,36.06,132.97,132.91,3.7623]
[1725627764345,39.76116901,132.97,132.91,3.7623]
[1725627764740,43.52206901,132.97,132.91,3.7623]
[1725627765136,0.04925115,132.95,132.84,2.6468]
[1725627765444,0.04925115,132.95,132.85,37.44285066]
[1725627765632,2.5831,132.99,132.87,36.06]
[1725627765837,39.8199,133.0,132.86,2.7026]
[1725627765838,3.72525389,133.0,132.91,36.06]
[1725627766144,38.7015,133.03,132.92,2.8028]
[1725627766440,3.7598,133.01,132.95,3.7612]
[1725627766738,0.0556819,132.97,132.93,2.7026]
[1725627767242,0.0556819,132.97,132.96,3.7609]
[1725627769047,2.6415,133.03,132.98,3.7604]
[1725627769237,3.7592,133.03,132.98,3.7604]
[1725627769638,38.859,133.07,132.95,36.06]
[1725627769948,38.6956,133.1,132.98,36.06]
[1725627770148,38.6956,133.1,133.04,3.7586]
[1725627770335,46.27756405,133.1,133.04,3.7586]
[1725627770641,0.05292923,133.08,133.04,3.7586]
[1725627771145,0.05292923,133.08,133.06,0.0574838]
[1725627771746,0.05292923,133.08,133.07,3.7579]
[1725627772644,39.74248044,133.16,133.06,0.0574838]
[1725627772838,39.74248044,133.16,133.06,2.8650838]
[1725627773042,3.68248044,133.16,133.06,2.8076]
[1725627773240,5.2261,133.17,133.06,2.8076]
[1725627773442,3.7166437,133.16,133.06,2.8076]
[1725627773646,3.7166437,133.16,133.08,3.7575]
[1725627773647,36.06,133.16,133.08,3.7575]
[1725627773843,3.66966418,133.15,133.06,2.8076]
[1725627774144,3.7568,133.11,133.1,0.05227997]
[1725627774349,3.7568,133.11,133.04,3.7586]
[1725627774350,39.7807779,133.11,133.04,3.7586]
[1725627774542,39.7807779,133.11,132.99,2.6478]
[1725627774543,36.06,133.11,132.99,2.6478]
[1725627774742,3.7577,133.08,133.02,3.7592]
[1725627774939,3.7577,133.08,132.99,6.42194663]
[1725627775139,39.72665749,133.11,132.99,6.42194663]
[1725627775448,3.7576,133.09,133.03,3.7589]
[1725627775647,39.72665749,133.11,133.03,3.7589]
[1725627775847,39.72665749,133.11,133.04,3.7586]
[1725627776142,36.06,133.11,133.0,36.06]
[1725627776349,39.87993082,133.11,133.0,38.7548]
[1725627776536,36.08,133.1,133.03,3.7589]
[1725627776847,36.08,133.08,133.04,0.04769717]
[1725627777037,3.7581,133.07,133.04,0.04769717]
[1725627777239,36.08,133.08,133.04,0.04769717]
[1725627777641,3.7584,133.06,133.04,0.04769717]
[1725627778253,36.08,133.06,133.04,0.04769717]
[1725627778739,36.08,133.06,132.99,3.7601]
[1725627778941,36.08,133.06,132.97,3.70826552]
[1725627779137,36.12922162,133.06,132.97,3.70826552]
[1725627779336,3.7592,133.03,132.99,3.76]
[1725627779746,36.08,133.04,132.95,2.5895]
[1725627779936,3.759,133.04,132.96,36.08]
[1725627780138,36.08,133.06,132.96,39.81749292]
[1725627780448,0.05263288,133.01,132.96,39.81749292]
[1725627780649,0.05263288,133.01,133.0,3.7597]
[1725627781349,0.05263288,133.01,132.96,3.73749292]
[1725627781650,0.05263288,133.01,132.95,38.6695]
[1725627781845,0.05263288,133.01,132.98,3.7603]
[1725627782146,0.05263288,133.01,132.95,42.34418108]
[1725627782340,0.05263288,133.01,133.0,3.7599]
[1725627782745,2.6417,133.07,133.0,36.08]
[1725627782949,2.6417,133.07,133.02,3.7592]
[1725627783145,6.3998,133.07,133.02,3.7592]
[1725627783345,38.7217,133.07,132.99,0.05742163]
[1725627783546,38.7217,133.07,133.01,3.7595]
[1725627783856,38.7217,133.07,132.98,36.08]
[1725627784147,38.7217,133.07,133.03,0.05222339]
[1725627784348,3.7583,133.06,133.03,0.05222339]
[1725627784846,38.7217,133.07,133.03,0.05222339]
[1725627785055,36.08,133.05,133.03,0.05222339]
[1725627785448,3.7584,133.06,133.03,0.05222339]
[1725627785848,38.7217,133.07,133.03,0.05222339]
[1725627786445,36.08,133.05,132.95,38.6695]
[1725627786766,38.7342,133.04,132.95,6.29962815]
[1725627787050,42.470281,133.04,132.97,3.7606]
[1725627787253,3.7598,133.01,132.97,3.7606]
[1725627787549,3.7598,133.01,132.98,3.7604]
[1725627788053,0.04907959,133.0,132.98,3.7604]
[1725627788451,0.04907959,133.0,132.95,2.5895]
[1725627788650,0.04907959,133.0,132.93,36.08]
[1725627788951,3.80917959,133.0,132.91,36.08]
[1725627789146,3.80917959,133.0,132.96,0.04882842]
[1725627789351,3.7601,133.0,132.96,0.04882842]
[1725627789546,3.7598,133.01,132.96,0.04882842]
[1725627789753,0.05479638,132.99,132.96,0.04882842]
[1725627790452,0.05479638,132.99,132.93,3.77821561]
[1725627790753,0.05479638,132.99,132.96,3.7609]
[1725627791148,0.05479638,132.99,132.93,3.77821561]
[1725627791451,0.05479638,132.99,132.95,3.7612]
[1725627792560,3.81499638,132.99,132.95,3.7612]